fUST/lending_fUST_20250716
["ID","MTS","AMOUNT","RATE_DAILY","PERIOD"]
[372541327,1752677478203,-651.31,0.00021643,2]
[372541328,1752677478214,-1962.74,0.00021643,2]
[372541329,1752677478224,-946.28,0.00021643,2]
[372541330,1752677478234,-5539.527835,0.00021643,2]
[372541331,1752677478244,-3975.19,0.00021643,2]
[372541332,1752677478254,-5539.527835,0.00021643,2]
[372541333,1752677478264,-532.35,0.00021643,2]
[372541334,1752677478274,-493.86,0.00021643,2]
[372541335,1752677478283,-460.0,0.00021643,2]
[372541336,1752677478293,-735.63,0.00021643,2]
[372541337,1752677478303,-1763.8,0.00021643,2]
[372541338,1752677478313,-460.0,0.00021643,2]
[372541339,1752677478323,-1135.47,0.00021643,2]
[372541340,1752677478334,-460.0,0.00021643,2]
[372541341,1752677478343,-6986.13,0.00021643,2]
[372541342,1752677478353,-843.83,0.00021643,2]
[372541343,1752677478363,-1241.01,0.00021643,2]
[372541344,1752677478373,-292.49,0.00021643,2]
[372541345,1752677478383,-460.0,0.00021643,2]
[372541346,1752677478393,-597.23446227,0.00021643,2]
[372541347,1752677478403,-2070.57,0.00021643,2]
[372541348,1752677478413,-460.0,0.00021643,2]
[372541349,1752677478423,-1038.6,0.00021643,2]
[372541350,1752677478433,-5915.89,0.00021643,2]
[372541351,1752677478443,-6018.33,0.00021643,2]
[372541352,1752677478453,-845.32,0.00021643,2]
[372541353,1752677478465,-492.73,0.00021643,2]
[372541354,1752677478474,-460.0,0.00021643,2]
[372541355,1752677478484,-858.64,0.00021643,2]
[372541356,1752677478495,-460.0,0.00021643,2]
[372541357,1752677478505,-460.0,0.00021643,2]
[372541358,1752677478515,-460.0,0.00021643,2]
[372541359,1752677478524,-1500.0,0.00021644,2]
[372541360,1752677478534,-500.0,0.00021644,2]
[372541361,1752677478545,-160.0,0.00021648,5]
[372541362,1752677478554,-4000.0,0.00021667,4]
[372541363,1752677478563,-4000.0,0.00021689,2]
[372541364,1752677478572,-25000.0,0.0002171,2]
[372541365,1752677478582,-154.785533,0.0002171,2]
[372541366,1752677478595,-483.51673,0.0002171,2]
[372541367,1752677478605,-483.51673,0.0002171,2]
[372541368,1752677478614,-151.0,0.0002171,2]
[372541369,1752677478623,-151.0,0.0002171,2]
[372541370,1752677478632,-151.0,0.0002171,2]
[372541371,1752677478642,-246.49242,0.0002171,2]
[372541372,1752677478651,-246.49242,0.0002171,2]
[372541373,1752677478660,-337.371888,0.0002171,2]
[372541374,1752677478669,-530.902226,0.0002171,2]
[372541375,1752677478678,-337.371888,0.0002171,2]
[372541376,1752677478688,-530.902226,0.0002171,2]
[372541377,1752677478697,-990.281603,0.0002171,2]
[372541378,1752677478708,-990.281603,0.0002171,2]
[372541379,1752677478718,-4689.0,0.00021763,2]
[372541380,1752677478727,-7885.54227734,0.00021797,6]
[372541381,1752677478736,-150.6881,0.00021807,2]
[372541382,1752677478746,-1341.63573637,0.00021853,2]
[372541383,1752677478755,-1000.0,0.00021862,2]
[372541384,1752677478764,-330.6,0.0002187,4]
[372541385,1752677478773,-240.1595903,0.0002189,2]
[372541386,1752677478783,-429.1687796,0.0002189,2]
[372541387,1752677478792,-429.1687796,0.0002189,2]
[372541388,1752677478801,-429.1687796,0.0002189,2]
[372541389,1752677478812,-429.1687796,0.0002189,2]
[372541390,1752677478821,-429.1687796,0.0002189,2]
[372541391,1752677478830,-429.1687796,0.0002189,2]
[372541392,1752677478839,-429.1687796,0.0002189,2]
[372541393,1752677478849,-429.1687796,0.0002189,2]
[372541394,1752677478858,-429.1687796,0.0002189,2]
[372541395,1752677478867,-429.1687796,0.0002189,2]
[372541396,1752677478876,-325.873079,0.0002189,2]
[372541397,1752677478885,-153.7028389,0.0002189,2]
[372541398,1752677478895,-5244.86640383,0.00021891,2]
[372541399,1752677478904,-3000.0,0.000219,2]
[372541400,1752677478913,-3000.0,0.0002191,2]
[372541401,1752677478922,-151.0,0.0002191,2]
[372541402,1752677478931,-151.0,0.0002191,2]
[372541403,1752677478941,-151.0,0.0002191,2]
[372541404,1752677478951,-2562.90213927,0.00021912,2]
[372541405,1752677478962,-114424.95216023,0.00021916,2]
[372541406,1752677478973,-677.575103,0.00021916,2]
[372541407,1752677478982,-677.575103,0.00021916,2]
[372541408,1752677478992,-606.542883,0.00021916,2]
[372541409,1752677479001,-606.542883,0.00021916,2]
[372541410,1752677479010,-206.327012,0.00021916,2]
[372541411,1752677479021,-206.327012,0.00021916,2]
[372541412,1752677479032,-837.516979,0.00021916,2]
[372541413,1752677479040,-837.516979,0.00021916,2]
[372541414,1752677479050,-612.16551,0.00021916,2]
[372541415,1752677479060,-612.165511,0.00021916,2]
[372541416,1752677479069,-161.653212,0.00021917,2]
[372541417,1752677479079,-161.653212,0.00021917,2]
[372541418,1752677479089,-253.94628,0.00021917,2]
[372541419,1752677479098,-253.94628,0.00021917,2]
[372541420,1752677479109,-381.526955,0.00021917,2]
[372541421,1752677479118,-381.526955,0.00021917,2]
[372541422,1752677479128,-202.444386,0.00021917,2]
[372541423,1752677479138,-195.485999,0.00021917,2]
[372541424,1752677479147,-195.485999,0.00021917,2]
[372541425,1752677479158,-218.099447,0.00021917,2]
[372541426,1752677479173,-218.099448,0.00021917,2]
[372541427,1752677479191,-358.89316111,0.00021917,2]
[372541428,1752677479203,-460.0,0.00021917,2]
[372541429,1752677479214,-460.0,0.00021917,2]
[372541430,1752677479223,-460.0,0.00021917,2]
[372541431,1752677479233,-460.0,0.00021917,2]
[372541432,1752677479245,-155.103424,0.00021917,2]
[372541433,1752677479254,-151.0,0.00021917,2]
[372541434,1752677479264,-151.0,0.00021917,2]
[372541435,1752677479274,-151.0,0.00021917,2]
[372541436,1752677479284,-194.390471,0.00021917,2]
[372541437,1752677479293,-194.390471,0.00021917,2]
[372541438,1752677479303,-216.481886,0.00021917,2]
[372541439,1752677479312,-151.0,0.00021917,2]
[372541440,1752677479322,-460.0,0.00021917,2]
[372541441,1752677479331,-175.35,0.00021917,2]
[372541442,1752677479340,-460.0,0.00021917,2]
[372541443,1752677479350,-175.35,0.00021917,2]
[372541444,1752677479359,-460.0,0.00021917,2]
[372541445,1752677479369,-1272.133395,0.00021917,2]
[372541446,1752677479378,-1272.133395,0.00021917,2]
[372541447,1752677479387,-268.312729,0.00021917,2]
[372541448,1752677479397,-268.312729,0.00021917,2]
[372541449,1752677479406,-460.0,0.00021917,2]
[372541450,1752677479415,-460.0,0.00021917,2]
[372541451,1752677479425,-460.0,0.00021917,2]
[372541452,1752677479434,-460.0,0.00021917,2]
[372541453,1752677479443,-460.0,0.00021917,2]
[372541454,1752677479453,-460.0,0.00021917,2]
[372541455,1752677479465,-151.0,0.00021917,2]
[372541456,1752677479475,-658.85,0.00021917,2]
[372541457,1752677479484,-173.823521,0.00021917,2]
[372541458,1752677479493,-173.823521,0.00021917,2]
[372541459,1752677479503,-460.0,0.00021917,2]
[372541460,1752677479513,-475.43,0.00021917,2]
[372541461,1752677479523,-961.83,0.00021917,2]
[372541462,1752677479532,-1083.23,0.00021917,2]
[372541463,1752677479542,-837.99,0.00021917,2]
[372541464,1752677479551,-1311.14,0.00021917,2]
[372541465,1752677479560,-258.530814,0.00021917,2]
[372541466,1752677479570,-258.530814,0.00021917,2]
[372541467,1752677479579,-1665.72,0.00021917,2]
[372541468,1752677479589,-669.53,0.00021917,2]
[372541469,1752677479598,-1125.79,0.00021917,2]
[372541470,1752677479608,-460.0,0.00021917,2]
[372541471,1752677479617,-1381.34,0.00021917,2]
[372541472,1752677479626,-613.33,0.00021917,2]
[372541473,1752677479636,-1663.21,0.00021917,2]
[372541474,1752677479645,-460.0,0.00021917,2]
[372541475,1752677479655,-460.0,0.00021917,2]
[372541476,1752677479665,-460.0,0.00021917,2]
[372541477,1752677479674,-567.23,0.00021917,2]
[372541478,1752677479684,-500.0,0.00021917,2]
[372541479,1752677479693,-1191.904355,0.00021917,2]
[372541480,1752677479702,-1191.904355,0.00021917,2]
[372541481,1752677479714,-460.0,0.00021917,2]
[372541482,1752677479724,-460.0,0.00021917,2]
[372541483,1752677479734,-151.0,0.00021917,2]
[372541484,1752677479743,-1465.190851,0.00021917,2]
[372541485,1752677479753,-1465.190851,0.00021917,2]
[372541486,1752677479763,-634.21,0.00021917,2]
[372541487,1752677479773,-6222.19,0.00021917,2]
[372541488,1752677479783,-460.0,0.00021917,2]
[372541489,1752677479793,-290.42,0.00021917,2]
[372541490,1752677479803,-494.3,0.00021917,2]
[372541491,1752677479813,-460.0,0.00021917,2]
[372541492,1752677479822,-701.57,0.00021917,2]
[372541493,1752677479831,-460.0,0.00021917,2]
[372541494,1752677479841,-2579.0,0.00021917,2]
[372541495,1752677479851,-558.87311057,0.00021917,2]
[372541496,1752677479860,-1587.47,0.00021917,2]
[372541497,1752677479870,-510.78,0.00021917,2]
[372541498,1752677479884,-12073.92,0.00021917,2]
[372541499,1752677479894,-460.0,0.00021917,2]
[372541500,1752677479904,-631.2,0.00021917,2]
[372541501,1752677479914,-253.575402,0.00021917,2]
[372541502,1752677479923,-1556.75,0.00021917,2]
[372541503,1752677479933,-253.575402,0.00021917,2]
[372541504,1752677479943,-536.62,0.00021917,2]
[372541505,1752677479952,-460.0,0.00021917,2]
[372541506,1752677479965,-964.18,0.00021917,2]
[372541507,1752677479977,-1245.03,0.00021917,2]
[372541508,1752677479986,-460.0,0.00021917,2]
[372541509,1752677479996,-15318.54,0.00021917,2]
[372541510,1752677480005,-905.4,0.00021917,2]
[372541511,1752677480015,-4111.22,0.00021917,2]
[372541512,1752677480025,-460.0,0.00021917,2]
[372541513,1752677480035,-460.0,0.00021917,2]
[372541514,1752677480046,-3044.67,0.00021917,2]
[372541515,1752677480055,-4935.17,0.00021917,2]
[372541516,1752677480065,-426.71353043,0.00021917,2]
[372541517,1752677480074,-151.0,0.00021917,2]
[372541518,1752677480084,-1948.0,0.00021917,2]
[372541519,1752677480094,-237.016665,0.00021917,2]
[372541520,1752677480103,-460.0,0.00021917,2]
[372541521,1752677480113,-389.21,0.00021917,2]
[372541522,1752677480122,-460.0,0.00021917,2]
[372541523,1752677480132,-498.37,0.00021917,2]
[372541524,1752677480142,-460.0,0.00021917,2]
[372541525,1752677480162,-217.121076,0.00021917,2]
[372541526,1752677480172,-217.121076,0.00021917,2]
[372541527,1752677480182,-460.0,0.00021917,2]
[372541528,1752677480193,-609.11,0.00021917,2]
[372541529,1752677480203,-460.0,0.00021917,2]
[372541530,1752677480216,-1030.45,0.00021917,2]
[372541531,1752677480226,-1104.85,0.00021917,2]
[372541532,1752677480236,-460.0,0.00021917,2]
[372541533,1752677480246,-10161.59,0.00021917,2]
[372541534,1752677480255,-670.83,0.00021917,2]
[372541535,1752677480266,-7778.76,0.00021917,2]
[372541536,1752677480275,-996.57,0.00021917,2]
[372541537,1752677480285,-530.41,0.00021917,2]
[372541538,1752677480296,-4761.84,0.00021917,2]
[372541539,1752677480306,-1421.14,0.00021917,2]
[372541540,1752677480316,-460.0,0.00021917,2]
[372541541,1752677480326,-667.5,0.00021917,2]
[372541542,1752677480335,-667.5,0.00021917,2]
[372541543,1752677480347,-667.5,0.00021917,2]
[372541544,1752677480357,-667.5,0.00021917,2]
[372541545,1752677480366,-667.5,0.00021917,2]
[372541546,1752677480376,-460.0,0.00021917,2]
[372541547,1752677480386,-667.5,0.00021917,2]
[372541548,1752677480396,-667.5,0.00021917,2]
[372541549,1752677480407,-667.5,0.00021917,2]
[372541550,1752677480417,-667.5,0.00021917,2]
[372541551,1752677480427,-667.5,0.00021917,2]
[372541552,1752677480437,-6063.24,0.00021917,2]
[372541553,1752677480447,-667.5,0.00021917,2]
[372541554,1752677480459,-2283.88,0.00021917,2]
[372541555,1752677480469,-460.0,0.00021917,2]
[372541556,1752677480478,-734.47,0.00021917,2]
[372541557,1752677480488,-151.0,0.00021917,2]
[372541558,1752677480499,-460.0,0.00021917,2]
[372541559,1752677480509,-651.31,0.00021917,2]
[372541560,1752677480519,-1962.74,0.00021917,2]
[372541561,1752677480529,-946.28,0.00021917,2]
[372541562,1752677480538,-5539.527835,0.00021917,2]
[372541563,1752677480548,-3975.19,0.00021917,2]
[372541564,1752677480557,-532.35,0.00021917,2]
[372541565,1752677480567,-5539.527835,0.00021917,2]
[372541566,1752677480576,-493.86,0.00021917,2]
[372541567,1752677480586,-460.0,0.00021917,2]
[372541568,1752677480595,-735.63,0.00021917,2]
[372541569,1752677480605,-1763.8,0.00021917,2]
[372541570,1752677480614,-460.0,0.00021917,2]
[372541571,1752677480809,-1135.47,0.00021917,2]
[372541572,1752677480820,-460.0,0.00021917,2]
[372541573,1752677480830,-6986.13,0.00021917,2]
[372541574,1752677480840,-1241.01,0.00021917,2]
[372541575,1752677480849,-843.83,0.00021917,2]
[372541576,1752677480859,-460.0,0.00021917,2]
[372541577,1752677480868,-2070.57,0.00021917,2]
[372541578,1752677480878,-460.0,0.00021917,2]
[372541579,1752677480888,-1038.6,0.00021917,2]
[372541580,1752677480897,-5915.89,0.00021917,2]
[372541581,1752677480907,-6018.33,0.00021917,2]
[372541582,1752677480916,-845.32,0.00021917,2]
[372541583,1752677480925,-492.73,0.00021917,2]
[372541584,1752677480935,-460.0,0.00021917,2]
[372541585,1752677480944,-858.64,0.00021917,2]
[372541586,1752677480954,-460.0,0.00021917,2]
[372541587,1752677480968,-472.96,0.00021917,2]
[372541588,1752677480979,-460.0,0.00021917,2]
[372541589,1752677480989,-1500.0,0.00021918,2]
[372541590,1752677480999,-195.36515402,0.00021918,2]
[372541591,1752677481008,-151.0,0.00021918,2]
[372541592,1752677481018,-151.0,0.00021918,2]
[372541593,1752677481029,-151.0,0.00021918,2]
[372541594,1752677481038,-151.0,0.00021918,2]
[372541595,1752677481048,-151.0,0.00021918,2]
[372541596,1752677481058,-151.0,0.00021918,2]
[372541597,1752677481067,-151.0,0.00021918,2]
[372541598,1752677481078,-151.0,0.00021918,2]
[372541599,1752677481087,-151.0,0.00021918,2]
[372541600,1752677481096,-151.0,0.00021918,2]
[372541601,1752677481106,-509.248351,0.00021918,2]
[372541602,1752677481115,-509.248351,0.00021918,2]
[372541603,1752677481124,-509.248351,0.00021918,2]
[372541604,1752677481134,-509.248351,0.00021918,2]
[372541605,1752677481145,-509.248351,0.00021918,2]
[372541606,1752677481154,-509.248351,0.00021918,2]
[372541607,1752677481163,-509.248351,0.00021918,2]
[372541608,1752677481172,-509.248351,0.00021918,2]
[372541609,1752677481182,-509.248351,0.00021918,2]
[372541610,1752677481191,-509.248351,0.00021918,2]
[372541611,1752677481201,-509.248351,0.00021918,2]
[372541612,1752677481212,-509.248351,0.00021918,2]
[372541613,1752677481222,-509.248351,0.00021918,2]
[372541614,1752677481232,-509.248351,0.00021918,2]
[372541615,1752677481242,-509.248351,0.00021918,2]
[372541616,1752677481252,-509.248351,0.00021918,2]
[372541617,1752677481262,-509.248351,0.00021918,2]
[372541618,1752677481272,-509.248351,0.00021918,2]
[372541619,1752677481282,-509.248351,0.00021918,2]
[372541620,1752677481292,-509.248343,0.00021918,2]
[372541621,1752677481302,-150.0,0.00021918,2]
[372541622,1752677481312,-150.0,0.00021918,2]
[372541623,1752677481321,-200.0,0.00021918,2]
[372541624,1752677481331,-150.0,0.00021918,2]
[372541625,1752677481341,-150.07429765,0.00021918,2]
[372541626,1752677481351,-3000.0,0.0002192,2]
[372541627,1752677481361,-151.0,0.0002192,7]
[372541628,1752677481370,-263.732917,0.0002192,7]
[372541629,1752677481380,-151.0,0.0002192,7]
[372541630,1752677481390,-246.49242,0.0002192,7]
[372541631,1752677481400,-246.49242,0.0002192,7]
[372541632,1752677481409,-337.371888,0.0002192,7]
[372541633,1752677481419,-530.902226,0.0002192,7]
[372541634,1752677481428,-337.371888,0.0002192,7]
[372541635,1752677481438,-530.902226,0.0002192,7]
[372541636,1752677481448,-990.281603,0.0002192,7]
[372541637,1752677481458,-990.281603,0.0002192,7]
[372541638,1752677481470,-158.02861431,0.0002192,4]
[372541639,1752677481480,-158.02861431,0.0002192,4]
[372541640,1752677481489,-158.02,0.0002192,4]
[372541641,1752677481500,-158.02861431,0.0002192,4]
[372541642,1752677481510,-158.02861431,0.0002192,4]
[372541643,1752677481520,-158.02861431,0.0002192,4]
[372541644,1752677481530,-158.02861431,0.0002192,4]
[372541645,1752677481539,-158.02861431,0.0002192,4]
[372541646,1752677481549,-158.02861431,0.0002192,4]
[372541647,1752677481559,-158.02,0.0002192,4]
[372541648,1752677481568,-150.04226239,0.0002192,4]
[372541649,1752677481578,-150.04226239,0.0002192,4]
[372541650,1752677481587,-150.04226239,0.0002192,4]
[372541651,1752677481597,-150.04226239,0.0002192,4]
[372541652,1752677481607,-150.04,0.0002192,4]
[372541653,1752677481616,-159.13573284,0.0002192,4]
[372541654,1752677481626,-159.13573284,0.0002192,4]
[372541655,1752677481636,-159.13573284,0.0002192,4]
[372541656,1752677481645,-159.13573284,0.0002192,4]
[372541657,1752677481655,-159.13573284,0.0002192,4]
[372541658,1752677481666,-159.13573284,0.0002192,4]
[372541659,1752677481675,-159.13573284,0.0002192,4]
[372541660,1752677481685,-159.13573284,0.0002192,4]
[372541661,1752677481695,-159.13573284,0.0002192,4]
[372541662,1752677481705,-159.13573284,0.0002192,4]
[372541663,1752677481718,-159.13,0.0002192,4]
[372541664,1752677481727,-3000.0,0.0002193,2]
[372541665,1752677481737,-151.786461,0.0002193,7]
[372541666,1752677481746,-3000.0,0.0002194,2]
[372541667,1752677481755,-151.0,0.0002194,7]
[372541668,1752677481766,-151.0,0.0002194,7]
[372541669,1752677481775,-151.0,0.0002194,7]
[372541670,1752677481784,-3000.0,0.0002195,2]
[372541671,1752677481794,-3000.0,0.0002196,2]
[372541672,1752677481803,-7885.54227734,0.00021969,6]
[372541673,1752677481813,-151.0,0.00021969,3]
[372541674,1752677481822,-3000.0,0.0002197,2]
[372541675,1752677481832,-525.44090785,0.00021973,2]
[372541676,1752677481841,-500.0,0.00021973,2]
[372541677,1752677481851,-500.0,0.00021973,2]
[372541678,1752677481861,-500.0,0.00021973,2]
[372541679,1752677481870,-160.0,0.00021977,6]
[372541680,1752677481879,-1100.0,0.0002198,2]
[372541681,1752677481889,-3000.0,0.0002198,2]
[372541682,1752677481898,-560.0,0.00021983,2]
[372541683,1752677481908,-3000.0,0.0002199,2]
[372541684,1752677481917,-1000.0,0.00022,2]
[372541685,1752677481926,-1000.0,0.00022,2]
[372541686,1752677481936,-1000.0,0.00022,2]
[372541687,1752677481945,-1000.0,0.00022,2]
[372541688,1752677481955,-1000.0,0.00022,2]
[372541689,1752677481967,-1000.0,0.00022,2]
[372541690,1752677481979,-1000.0,0.00022,2]
[372541691,1752677481989,-1270.17,0.00022,2]
[372541692,1752677481999,-1000.0,0.00022,2]
[372541693,1752677482008,-1000.0,0.00022,2]
[372541694,1752677482019,-1000.0,0.00022,2]
[372541695,1752677482029,-1000.0,0.00022,2]
[372541696,1752677482038,-3000.0,0.00022,2]
[372541697,1752677482049,-151.0,0.00022,7]
[372541698,1752677482059,-151.0,0.00022,7]
[372541699,1752677482070,-51617.87,0.00022,2]
[372541700,1752677482079,-483.51673,0.00022,7]
[372541701,1752677482090,-483.51673,0.00022,7]
[372541702,1752677482100,-6818.71,0.00022,7]
[372541703,1752677482109,-151.0,0.00022,7]
[372541704,1752677482118,-195.485999,0.00022,7]
[372541705,1752677482128,-195.485999,0.00022,7]
[372541706,1752677482137,-75218.82571281,0.00022,2]
[372541707,1752677482147,-352.61950143,0.00022,2]
[372541708,1752677482157,-74375.8868597,0.00022,2]
[372541709,1752677482166,-27656.40989895,0.00022,2]
[372541710,1752677482175,-48166.90911244,0.00022,14]
[372541711,1752677482184,-166.66245316,0.00022,10]
[372541712,1752677482195,-550.3576061,0.00022,2]
[372541713,1752677482204,-151.0,0.00022,7]
[372541714,1752677482215,-151.0,0.00022,7]
[372541715,1752677482225,-151.0,0.00022,7]
[372541716,1752677482234,-194.390471,0.00022,7]
[372541717,1752677482243,-194.390471,0.00022,7]
[372541718,1752677482253,-151.0,0.00022,7]
[372541719,1752677482262,-175.35,0.00022,7]
[372541720,1752677482271,-175.35,0.00022,7]
[372541721,1752677482281,-1272.133395,0.00022,7]
[372541722,1752677482298,-1272.133395,0.00022,7]
[372541723,1752677482313,-268.312729,0.00022,7]
[372541724,1752677482329,-268.312729,0.00022,7]
[372541725,1752677482341,-152.032092,0.00022,7]
[372541726,1752677482356,-246.49242,0.00022,7]
[372541727,1752677482370,-246.49242,0.00022,7]
[372541728,1752677482387,-151.0,0.00022,7]
[372541729,1752677482401,-46870.95,0.00022,7]
[372541730,1752677482417,-4429.2,0.00022,7]
[372541731,1752677482434,-173.823521,0.00022,7]
[372541732,1752677482447,-173.823521,0.00022,7]
[372541733,1752677482464,-337.371888,0.00022,7]
[372541734,1752677482478,-530.902226,0.00022,7]
[372541735,1752677482493,-337.371888,0.00022,7]
[372541736,1752677482507,-530.902226,0.00022,7]
[372541737,1752677482519,-258.530814,0.00022,7]
[372541738,1752677482532,-258.530814,0.00022,7]
[372541739,1752677482545,-5000.0,0.00022,18]
[372541740,1752677482559,-990.281603,0.00022,7]
[372541741,1752677482574,-990.281603,0.00022,7]
[372541742,1752677482588,-1191.904355,0.00022,7]
[372541743,1752677482603,-1191.904355,0.00022,7]
[372541744,1752677482618,-677.575103,0.00022,7]
[372541745,1752677482630,-677.575103,0.00022,7]
[372541746,1752677482640,-677.575103,0.00022,7]
[372541747,1752677482652,-677.575104,0.00022,7]
[372541748,1752677482669,-151.0,0.00022,7]
[372541749,1752677482683,-1465.190851,0.00022,7]
[372541750,1752677482693,-1465.190845,0.00022,7]
[372541751,1752677482706,-1973.524237,0.00022,2]
[372541752,1752677482721,-606.542883,0.00022,7]
[372541753,1752677482733,-606.542883,0.00022,7]
[372541754,1752677482744,-606.542883,0.00022,7]
[372541755,1752677482756,-206.327012,0.00022,7]
[372541756,1752677482767,-606.542892,0.00022,7]
[372541757,1752677482780,-206.327012,0.00022,7]
[372541758,1752677482792,-206.327012,0.00022,7]
[372541759,1752677482804,-206.327022,0.00022,7]
[372541760,1752677482816,-837.516979,0.00022,7]
[372541761,1752677482827,-837.516979,0.00022,7]
[372541762,1752677482839,-837.516979,0.00022,7]
[372541763,1752677482850,-837.516978,0.00022,7]
[372541764,1752677482862,-253.575402,0.00022,7]
[372541765,1752677482874,-253.575402,0.00022,7]
[372541766,1752677482886,-151.0,0.00022,7]
[372541767,1752677482898,-217.121076,0.00022,7]
[372541768,1752677482910,-217.121076,0.00022,7]
[372541769,1752677482922,-5539.527835,0.00022,7]
[372541770,1752677482934,-5539.527828,0.00022,7]
[372541771,1752677482945,-282.0,0.00022,2]
[372541772,1752677482957,-3000.0,0.0002201,2]
[372541773,1752677482972,-3000.0,0.0002202,2]
[372541774,1752677482986,-3000.0,0.0002203,2]
[372541775,1752677482998,-3000.0,0.0002204,2]
[372541776,1752677483009,-3000.0,0.0002205,2]
[372541777,1752677483022,-1500.0,0.00022054,2]
[372541778,1752677483033,-3000.0,0.0002206,2]
[372541779,1752677483044,-5000.0,0.00022061,2]
[372541780,1752677483056,-3000.0,0.0002207,2]
[372541781,1752677483067,-3000.0,0.0002208,2]
[372541782,1752677483078,-539.16347425,0.0002208,2]
[372541783,1752677483089,-163.56368296,0.0002208,2]
[372541784,1752677483101,-1017.33663062,0.00022085,2]
[372541785,1752677483112,-246.49242,0.00022087,7]
[372541786,1752677483123,-246.49242,0.00022087,7]
[372541787,1752677483134,-151.0,0.00022087,7]
[372541788,1752677483145,-173.823521,0.00022087,7]
[372541789,1752677483155,-173.823521,0.00022087,7]
[372541790,1752677483167,-337.371888,0.00022087,7]
[372541791,1752677483178,-530.902226,0.00022087,7]
[372541792,1752677483189,-530.902226,0.00022087,7]
[372541793,1752677483200,-337.371888,0.00022087,7]
[372541794,1752677483211,-258.530814,0.00022087,7]
[372541795,1752677483223,-258.530814,0.00022087,7]
[372541796,1752677483235,-990.281603,0.00022087,7]
[372541797,1752677483246,-990.281603,0.00022087,7]
[372541798,1752677483256,-1191.904355,0.00022087,7]
[372541799,1752677483267,-1191.904355,0.00022087,7]
[372541800,1752677483279,-3000.0,0.0002209,2]
[372541801,1752677483290,-3000.0,0.000221,2]
[372541802,1752677483301,-3000.0,0.0002211,2]
[372541803,1752677483312,-349.79101408,0.00022112,2]
[372541804,1752677483323,-504.6356854,0.00022112,2]
[372541805,1752677483334,-3000.0,0.0002212,2]
[372541806,1752677483345,-3000.0,0.0002213,2]
[372541807,1752677483357,-3000.0,0.0002214,2]
[372541808,1752677483368,-7885.54227734,0.00022141,6]
[372541809,1752677483379,-5519.377931,0.0002215,2]
[372541810,1752677483390,-381.526955,0.00022152,7]
[372541811,1752677483402,-381.526955,0.00022152,7]
[372541812,1752677483413,-2500.0,0.00022164,2]
[372541813,1752677483425,-1874.61804698,0.00022164,2]
[372541814,1752677483436,-2518.74580362,0.00022164,2]
[372541815,1752677483448,-161.653212,0.00022176,7]
[372541816,1752677483459,-161.653212,0.00022176,7]
[372541817,1752677483471,-253.94628,0.00022176,7]
[372541818,1752677483483,-253.94628,0.00022176,7]
[372541819,1752677483495,-151.0,0.00022191,3]
[372541820,1752677483507,-151.0,0.00022191,7]
[372541821,1752677483518,-151.0,0.00022191,7]
[372541822,1752677483530,-151.0,0.00022191,7]
[372541823,1752677483540,-151.0,0.00022191,7]
[372541824,1752677483551,-483.51673,0.00022191,7]
[372541825,1752677483563,-483.51673,0.00022191,7]
[372541826,1752677483574,-151.0,0.00022191,7]